Cogmind - Beta 13 @@@ ROGUE MODE // 2024.05.27 @ 16:23:24 Player: Ragemodebzrk Result: Destroyed by D-53 Grenadier with Mini Grenade Launcher Performance ------------- Evolutions (0) 0 Regions Visited (2) 400 Robots Destroyed (17) 85 Value Destroyed (370) 370 Prototype IDs (2) 40 Alien Tech Used (0) 0 Bonus (0) 0 TOTAL SCORE: 895 Bonus ------- None Cogmind --------- Core Integrity 0/250 Matter 184/300 Energy 100/100 System Corruption 0% Temperature Cool (0) Movement Core (200) Ox3 Location -10/Mines Parts ------- > --- POWER (1) -------- (None) > --- PROPULSION (2) --- (None) > --- UTILITY (2) ------ Medium Storage Unit Targeting Computer > --- WEAPON (2) ------- (None) > --- INVENTORY (10) --- Datajack Peak State ------------ > --- POWER ------------ Light Nuclear Core > --- PROPULSION ------- Aluminum Leg Aluminum Leg > --- UTILITY ---------- Small Storage Unit Power Shielding > --- WEAPON ----------- Assault Rifle Light Assault Rifle > --- INVENTORY -------- Medium Storage Unit [Rating: 9] Favorites ----------- Power Ion Engine Engine Ion Engine Power Core Light Nuclear Core Propulsion Aluminum Leg Leg Aluminum Leg Flight Unit Flight Unit Utility Medium Storage Unit Storage Medium Storage Unit Processor Targeting Computer Protection Power Shielding Weapon Light Assault Rifle Energy Cannon Beam Cannon Ballistic Gun Light Assault Rifle Ballistic Cannon Light Cannon Launcher Grenade Launcher Build | -11 -10 -10 ------- Run | Yrd Mat Min Slots Evolved . | . . . Power . | . . . Propulsion . | . . . Utility . | . . . Weapon . | . . . Parts Attached 25 | 6 18 1 Power 3 | 1 2 . Engine 2 | 1 1 . Core 1 | . 1 . Reactor . | . . . Propulsion 6 | 2 4 . Treads . | . . . Leg 4 | 2 2 . Wheel . | . . . Hover . | . . . Flight 2 | . 2 . Utility 6 | 1 5 . Device . | . . . Storage 4 | 1 3 . Processor 1 | . 1 . Hackware . | . . . Protection 1 | . 1 . Artifact . | . . . Weapon 10 | 2 7 1 Energy Gun . | . . . Energy Cannon 2 | . 2 . Ballistic Gun 4 | 2 2 . Ballistic Cannon 3 | . 2 1 Launcher 1 | . 1 . Special Weapon . | . . . Impact Weapon . | . . . Slashing Weapon . | . . . Piercing Weapon . | . . . Special Melee Weapon . | . . . Unidentified Prototypes . | . . . Parts Lost 11 | . 5 6 Power 2 | . 1 1 Propulsion 4 | . 2 2 Utility . | . . . Weapon 5 | . 2 3 Highest Loss Streak 6 | . 5 6 To Critical Strikes . | . . . Average Slot Usage (%) 92 | . 93 80 Engine 6 | . 6 12 Core 4 | . 5 . Leg 19 | . 19 17 Flight 6 | . 6 . Storage 14 | . 14 14 Processor 5 | . 4 14 Protection 7 | . 8 . Energy Cannon 1 | . 1 . Ballistic Gun 13 | . 14 7 Ballistic Cannon 4 | . 4 4 Launcher 7 | . 7 9 Naked Turns . | . . . Heaviest Build 22 | 13 22 19 Greatest Support 20 | 20 20 20 Greatest Overweight (x) 5 | 4 5 5 Average Overweight (x) . | . . . Largest Inventory Capacity 25 | 8 25 10 Average Capacity 9 | 6 9 10 Most Carried 4 | 4 3 2 Average Carried 1 | 1 1 1 Final Capacity 10 | 8 10 10 Final Carried 2 | 1 2 1 Class Distribution -------------------- 100% | Mutant Dominant Class ---------------- Mutant | -10/Materials Mutant | -10/Mines Resources | -11 -10 -10 ----------- Run | Yrd Mat Min Matter Collected 548 | 210 338 . Remotely . | . . . Salvage Created 409 | . 409 . Parts 36 | . 36 . Haulers Intercepted . | . . . Recyclers Shooed . | . . . Parts Field Recycled . | . . . Retrieved Matter . | . . . Parts Self-Destructed . | . . . Prevented . | . . . Kills | -11 -10 -10 ------- Run | Yrd Mat Min Combat Hostiles Destroyed 13 | . 13 . Guns 5 | . 5 . Cannons 8 | . 8 . Classes Destroyed 4 | . 4 . Worker 1 | . 1 . Watcher 3 | . 3 . Swarmer 6 | . 6 . Grunt 7 | . 7 . Best Kill Streak 5 | . 5 . Combat Bots Only 5 | . 5 . Max Kills in Single Turn 1 | . 1 . Gunslinging . | . . . Exploded . | . . . Melee . | . . . Uniques/NPCs Destroyed . | . . . Combat | -11 -10 -10 -------- Run | Yrd Mat Min Hostile Shots Fired 120 | . 104 16 Missed 30 | . 26 4 Damage Taken 1375 | . 763 612 Core 254 | . 148 106 Absorbed by Shields . | . . . Redirected to Shielding 16 | . 16 . Core Remaining (%) 100 | 100 . . Volleys Fired 48 | . 46 2 Largest 2 | . 2 1 Hottest 120 | . 120 35 Shots Fired 86 | . 84 2 Gun 51 | . 51 . Cannon 31 | . 30 1 Launcher 4 | . 3 1 Special . | . . . Kinetic 61 | . 60 1 Thermal 21 | . 21 . Explosive 4 | . 3 1 Electromagnetic . | . . . Robot Hit Streak 7 | . 7 1 Robot Miss Streak 6 | . 6 1 Penetration Max . | . . . Secondary Targets 1 | . 1 . Max Gunslinging Chain 1 | . 1 . Shots Hit Robots 44 | . 43 1 Core Hits 27 | . 25 2 Critical Kills . | . . . Critical Parts Destroyed 1 | . 1 . Critical Strikes 1 | . 1 . Destroy 1 | . 1 . Melee Attacks . | . . . Impact . | . . . Slashing . | . . . Piercing . | . . . Sneak Attacks . | . . . Combat Hostiles . | . . . Follow-up Attacks . | . . . Damage Inflicted 720 | . 699 21 Guns 279 | . 279 . Cannons 295 | . 280 15 Explosions 146 | . 140 6 Melee . | . . . Ramming . | . . . Kinetic 401 | . 386 15 Thermal 173 | . 173 . Explosive 146 | . 140 6 Electromagnetic . | . . . Impact . | . . . Slashing . | . . . Piercing . | . . . Highest Corruption . | . . . Average Corruption . | . . . Corruption Purged . | . . . Corruption Blocked . | . . . Overload Shots . | . . . Overflow Damage . | . . . Projectiles . | . . . Explosions . | . . . Melee . | . . . Knockbacks 1 | . 1 . Impact . | . . . Kinetic 1 | . 1 . Secondary . | . . . Self-Inflicted Damage 14 | . 14 . Shots 1 | . 1 . Rammed . | . . . Targets Rammed . | . . . Kicked . | . . . Crushed . | . . . Highest Temperature 601 | . 601 . Average Temperature 175 | . 175 . Received Heat Transfer 234 | . 234 . Effects 12 | . 12 . Shutdowns 2 | . 2 . Energy Bleed 2 | . 2 . Interference 2 | . 2 . Matter Decay 2 | . 2 . Damage (minor) 2 | . 2 . Damage (major) 2 | . 2 . Siege Activations . | . . . Robots Corrupted . | . . . Combat Hostiles . | . . . Parts Fried . | . . . Impact Corruptions . | . . . Robots Melted . | . . . Combat Hostiles . | . . . Parts Melted 1 | . 1 . Heat Transferred 370 | . 370 . Parts Sabotaged . | . . . Parts Stolen . | . . . Parts Stripped . | . . . Power Chain Reactions . | . . . Alert | -11 -10 -10 ------- Run | Yrd Mat Min Peak Influence 265 | . 265 15 Initial . | . . . Average 83 | . 96 . Maximum Alert Level 1 | . 1 . Low Security (%) 76 | 100 73 100 Level 1 23 | . 26 . Level 2 . | . . . Level 3 . | . . . Level 4 . | . . . Level 5 . | . . . High Security . | . . . Max Security . | . . . Squads Dispatched 4 | . 4 . Investigation 4 | . 4 . Extermination . | . . . Reinforcement . | . . . Assault . | . . . Garrison . | . . . Intercept . | . . . Searches Triggered . | . . . Construction Impeded . | . . . Haulers Reinforced . | . . . Active Scanning Responses . | . . . Cargo Convoy Interrupts . | . . . Stealth | -11 -10 -10 --------- Run | Yrd Mat Min Distress Signals . | . . . Communications Jammed . | . . . Distress Signals . | . . . Times Spotted 20 | . 18 2 Peak Tracking Total 5 | . 5 2 Tactical Retreats 1 | . . 1 Traps | -11 -10 -10 ------- Run | Yrd Mat Min Traps Triggered 1 | . 1 . Indirectly . | . . . Trap Hack Attempts . | . . . Triggered . | . . . Disarmed 6 | . 6 . Reprogrammed . | . . . Reused . | . . . Traps Extracted . | . . . Installed . | . . . Triggered . | . . . Machines | -11 -10 -10 ---------- Run | Yrd Mat Min Machines Disabled 1 | . 1 . Max in Single Turn 1 | . 1 . Machines Repaired . | . . . Machines Dismantled . | . . . Machines Sabotaged . | . . . Overloaded Fab Kills . | . . . Hacking | -11 -10 -10 --------- Run | Yrd Mat Min Machines Accessed 8 | . 8 . Terminals 7 | . 7 . Fabricators . | . . . Repair Stations . | . . . Recycling Units 1 | . 1 . Scanalyzers . | . . . Garrison Access . | . . . Total Hacks 30 | . 30 . Successful 16 | . 16 . Failed 14 | . 14 . Catastrophic 1 | . 1 . Database Lockouts . | . . . Manual . | . . . Terminals 27 | . 27 . Fabricators . | . . . Repair Stations . | . . . Recycling Units 3 | . 3 . Scanalyzers . | . . . Garrison Access . | . . . Terminal Hacks 14 | . 14 . Record 2 | . 2 . Robot Analysis 1 | . 1 . Prototype ID Bank 1 | . 1 . Alert Level 2 | . 2 . Unreport Threat 2 | . 2 . Locate Traps 2 | . 2 . Disarm Traps 1 | . 1 . Dispatch Records 1 | . 1 . Recall Investigation 1 | . 1 . Hauler Manifests 1 | . 1 . Fabricator Hacks . | . . . Repair Station Hacks . | . . . Recycling Unit Hacks 2 | . 2 . Recycle Component 1 | . 1 . Process 1 | . 1 . Scanalyzer . | . . . Garrison Access Hacks . | . . . Unauthorized Hacks . | . . . Terminals . | . . . Fabricators . | . . . Repair Stations . | . . . Recycling Units . | . . . Scanalyzers . | . . . Garrison Access . | . . . Data Cores Recovered . | . . . Used . | . . . Hacking Detections 8 | . 8 . Full Trace Events 7 | . 7 . Feedback Events . | . . . Feedback Blocked . | . . . Robot Schematics Acquired . | . . . Robots Built . | . . . Authchips . | . . . Time . | . . . Total Robot Build Rating . | . . . Part Schematics Acquired . | . . . Parts Built . | . . . Authchips . | . . . Time . | . . . Total Part Build Rating . | . . . Parts Repaired . | . . . Time . | . . . Parts Recycled 1 | . 1 . Recycled Matter 282 | . 282 . Retrieved Matter . | . . . Retrieved Components . | . . . Parts Scanalyzed . | . . . Part Schematics Acquired . | . . . Parts Damaged . | . . . Bothacking | -11 -10 -10 ------------ Run | Yrd Mat Min Used RIF Installer . | . . . Robots Hacked . | . . . Non-combat . | . . . Combat . | . . . Robot Hacks Applied . | . . . Relay Couplers Released . | . . . Fabnet Peak Effective % . | . . . Robots Rewired . | . . . Allies Hacked . | . . . Hacks Repelled . | . . . Allies | -11 -10 -10 -------- Run | Yrd Mat Min Total Allies . | . . . Largest Group . | . . . Highest-Rated Group . | . . . Highest-Rated Ally . | . . . Total Orders . | . . . Ally Attacks . | . . . Total Damage . | . . . Kills . | . . . Allies Corrupted . | . . . Allies Melted . | . . . Intel | -11 -10 -10 ------- Run | Yrd Mat Min Robot Analysis Total 1 | . 1 . Derelict Logs Recovered . | . . . Drone Launches . | . . . Drone Recoveries . | . . . Exploration | -11 -10 -10 ------------- Run | Yrd Mat Min Turns Passed 1120 | 66 970 84 Spaces Moved 668 | 47 571 50 Core 42 | 32 5 5 Treads . | . . . Legs 522 | 15 462 45 Wheels . | . . . Hover . | . . . Flight 104 | . 104 . Fastest Speed 50 | 50 120 120 Average Speed 137 | 113 138 156 Slowest Speed 300 | 250 300 300 Overloaded Moves . | . . . Propulsion Burnouts . | . . . Robots Hopped . | . . . Cave-ins Triggered . | . . . Exploration Rate (%) 32 | 4 80 14 Regions Visited 2 Branch Regions 1 Pre-discovered Areas . | . . . Known Exits Taken . | . . . Unknown Exits Taken 2 | 1 1 . Scrap Searched . | . . . Spaces Dug . | . . . Terrain Destroyed 32 | . 22 10 Melee . | . . . Projectile . | . . . AOE 32 | . 22 10 Terrain Rammed . | . . . Walls Destroyed . | . . . Machines Disabled . | . . . Actions | -11 -10 -10 --------- Run | Yrd Mat Min Total 786 | 59 672 55 Wait 8 | . 6 2 Move 666 | 46 570 50 Hop . | . . . Pick Up 27 | 7 20 . Fast Attach . | . . . Attach 13 | 6 6 1 Detach . | . . . Swap 12 | . 12 . Drop 12 | . 12 . Fire 48 | . 46 2 Melee . | . . . Ram . | . . . Kick . | . . . Crush . | . . . Escape Stasis . | . . . Rewire . | . . . Trap . | . . . Miscellaneous . | . . . Route ------- -11/Scrapyard -10/Materials (discovered 5 exits: [*Mat x3] / [*Min x2]) -10/Mines History --------- Turn | Location | Event 9 | -11/Scrapyard | Discovered new exit (range 16) 67 | -11/Scrapyard | Entered Materials 119 | -10/Materials | Discovered new exit (range 15) 289 | -10/Materials | Discovered new exit (range 15) 314 | -10/Materials | Build established: Mutant 497 | -10/Materials | Core integrity fell below 50% 532 | -10/Materials | Lost 5 parts (1p2n2w) 553 | -10/Materials | Discovered new exit (range 13) 682 | -10/Materials | Discovered new exit (range 10) 820 | -10/Materials | Discovered new exit (range 12) 1037 | -10/Materials | Entered Mines 1066 | -10/Mines | Assembled infested the area 1071 | -10/Mines | Assisted by a Guerilla fighting off Assembled 1098 | -10/Mines | Core integrity fell below 20% 1121 | -10/Mines | Destroyed by D-53 Grenadier with Mini Grenade Launcher Last Messages --------------- The unstable cave ceiling collapses. U-05 Engineer lays Concrete. R-06 Scavenger collects Terrain Scanner. The unstable cave ceiling collapses. U-05 Engineer lays Concrete. U-05 Engineer builds a Wall. The unstable cave ceiling collapses. U-05 Engineer builds a Wall. The unstable cave ceiling collapses. R-06 Scavenger destroyed. The unstable cave ceiling collapses. U-05 Engineer lays Concrete. The unstable cave ceiling collapses. Aluminum Leg destroyed. U-05 Engineer builds a Wall. The unstable cave ceiling collapses. Ion Engine destroyed. U-05 Engineer lays Concrete. U-05 Engineer builds a Wall. Lgt. Cannon destroyed. Map ----- +----------------------------------------------------+ | ????????? ###?????????????????????????????????? | | ????????# #????????????????????????????????? | | ????????# # #????????????????????????????????? | | ## ### ##??????????????????????????????? | | $ "%" ##?????????????????????????????? | | ??######## % #?????????????????????????????? | | ?????????# ##????????????????????????????? | | ?????????# # #???????#????????????????????? | | ?????????### # # ###???? #????????????????????? | | ???????????# #??## ##???????????????????? | | ???????????# #?? ????????????????????? | | ???????????# # ##?? ?????????????????????? | | ???????????# ### #?????????????????????? | | ???????######### # # # ###???????????????????? | | ???????# u ##??????????????????? | | ???????# #### # ##?????????????????? | | ???????# #?## # ## ##????????????????? | | ???????# #?# =%! #????????????????? | | ??????## #?## d #????????????????? | | ?????## ##?# #?????????????????? | | ????## #?##### ###?????????????????? | | ????# #?????## ##???????????????????? | | ???# #?????# ###????????????????????? | | ??# #?????## #??????????????????????? | | ? ?????# ??????????????????????? | | ### ???### @#??????????????????????? | | ???##### ##### #???# ## ?????????????????????? | | ????????###????????????##### #???????????????????? | | ?????????????????????????????#???????????????????? | | ?????????????????????????????????????????????????? | | ?????????????????????????????????????????????????? | | ?????????????????????????????????????????????????? | | ?????????????????????????????????????????????????? | | ?????????????????????????????????????????????????? | | ?????????????????????????????????????????????????? | | ?????????????????????????????????????????????????? | | ?????????????????????????????????????????????????? | | ?????????????????????????????????????????????????? | | ?????????????????????????????????????????????????? | | ?????????????????????????????????????????????????? | | ?????????????????????????????????????????????????? | | ?????????????????????????????????????????????????? | | ?????????????????????????????????????????????????? | | ?????????????????????????????????????????????????? | | ?????????????????????????????????????????????????? | | ?????????????????????????????????????????????????? | | ?????????????????????????????????????????????????? | | ?????????????????????????????????????????????????? | | ?????????????????????????????????????????????????? | | ?????????????????????????????????????????????????? | +----------------------------------------------------+ Best States ------------- Heat Dissipation 25 Energy Generation 14 Energy Capacity 250 Matter Stores 250 Matter Capacity 300 Sight Range 16 Terrain Scan Density 10 Power Shielding 33 Evasion (%) 55 Targeting Accuracy 5 Item Schematics ----------------- None Robot Schematics ------------------ None Fabricated ------------ Nothing Alien Tech Used ----------------- None Achievements -------------- Shopping List Challenges ------------ None Game ------ Seed RecyclingGravitonMace Manual? 0 Play Time 00:13:48 Cumulative 3.3 hours Start 2024.05.27 @ 16:10:30 End 2024.05.27 @ 16:23:24 Sessions 1 Manual Loads 0 Difficulty Rogue Special Mode None Game No. 6 Rogue 6 Adventurer 0 Explorer 0 Win Type - Total 0 Types 0/0/0/0/0/0/0/0/0 Lore% 9 Gallery% 10 Achievement% 7 Wizard Run 0 Options --------- Layout 1 ASCII 0 Keyboard 0 Movement Mouse Keybinds 0 Fullscreen 1 Font 24/Smallcaps Map View 50x35 Zoom Use 0% Tactical HUD 0 Map Filters NONE Filters NONE Steam 1 RUN: c9fdc992-fbdc-46d5-a6a6-44b1a7692241